{"text_format":"1","workbook":"xlsx","n_sheets":3,"sheets":["Заказ","Данные","Лист3"],"not_rendered":{"charts":0,"images":0,"macros":1,"external_links":0,"defined_names":3,"comments":0,"pivot_tables":0},"unopened":[],"bounds":{"document_bytes":16777216,"sheet_cells":100000,"rows_first":2000,"rows_last":500,"rows_between":2000,"halvings":0,"cell_chars":16384,"cell_head_chars":4096},"cells_cut":0,"cells_raw":0,"read":"whole","date_system":"1900"}

{"sheet":"Заказ","index":0,"n_rows":43,"n_cols":7,"rows_kept":43,"cut":false,"hidden":false,"merged":[[3,6,3,9],[2,6,2,9],[1,6,1,9],[0,6,0,9],[6,6,6,9],[4,2,4,5],[0,4,0,5],[1,4,1,5],[0,1,0,2],[2,4,2,5]]}
["Дата:",{"$f":"TODAY()","v":"2024-03-02"},null,null,"Толщина стены",null,"50 мм"]
[null,null,null,null,"Тип дома",null,"ЛАЧУГА"]
[null,null,null,null,"Покрытие",null,"Линолиум"]
[null,null,null,null,null,"Тип покрытия","Коричневый"]
[null,"Заказчик","Поросёнок 5"]
[]
["№","Длина","Ширина","Кол-во","Площадь","Тип","Дополнительно"]
[1,null,null,null,{"$f":"((B8*C8)/1000000)*D8","v":0},"Клетка"]
[2,null,null,null,{"$f":"((B9*C9)/1000000)*D9","v":0}]
[3,null,null,null,0]
[4,null,null,null,0]
[5,null,null,null,0]
[6,null,null,null,0]
[7,null,null,null,0]
[8,null,null,null,0]
[9,null,null,null,0]
[10,null,null,null,0]
[11,null,null,null,0]
[12,null,null,null,0]
[13,null,null,null,0]
[14,null,null,null,0]
[15,null,null,null,0]
[16,null,null,null,0]
[17,null,null,null,0]
[18,null,null,null,0]
[19,null,null,null,0]
[20,null,null,null,0]
[21,null,null,null,0]
[22,null,null,null,0]
[23,null,null,null,0]
[24,null,null,null,0]
[25,null,null,null,0]
[26,null,null,null,0]
[27,null,null,null,0]
[28,null,null,null,0]
[29,null,null,null,0]
[30,null,null,null,0]
[31,null,null,null,0]
[32,null,null,null,0]
[33,null,null,null,0]
[34,null,null,null,0]
[35,null,null,null,0]
[null,"Стоимость м²",null,null,{"$f":"Данные!K17","v":1}]

{"sheet":"Данные","index":1,"n_rows":22,"n_cols":77,"rows_kept":22,"cut":false,"hidden":false,"merged":[[13,9,13,11],[2,0,2,1],[13,69,13,76],[12,43,12,76],[13,14,13,19],[13,21,13,26],[13,28,13,33],[13,35,13,40],[12,14,12,40],[13,43,13,49],[13,51,13,58],[13,60,13,67]]}
[]
[]
[]
[]
[]
[]
[]
[]
[]
[]
[]
[]
[null,null,null,null,null,null,null,null,null,null,null,null,null,null,"Ленолиум",null,null,null,null,null,null,null,null,null,null,null,null,null,null,null,null,null,null,null,null,null,null,null,null,null,null,null,null,"Ламинад"]
["Толщина стены","Тип дома","Покрытие пола","Линолиум","Ламинад","Заказчики","Тип",null,null,"Условие округления площади до 1 м2",null,null,null,null,"Лачуга",null,null,null,null,null,null,"Стандарт",null,null,null,null,null,null,"Престиж",null,null,null,null,null,null,"Дворец",null,null,null,null,null,null,null,"Лачуга",null,null,null,null,null,null,null,"Стандарт",null,null,null,null,null,null,null,null,"Престиж",null,null,null,null,null,null,null,null,"Дворец"]
["50 мм","ЛАЧУГА","ЛЕНОЛИУМ","Коричневый","Коричневый","Поросёнок 1","Клетка",null,null,"Общая площадь",{"$f":"SUM(Заказ!E8:E42)","v":0},null,null,null,"Толщина","Коричневый","Зелёный","Красный","Синий","Чёрный",null,"Толщина","Коричневый","Зелёный","Красный","Синий","Чёрный",null,"Толщина","Коричневый","Зелёный","Красный","Синий","Чёрный",null,"Толщина","Коричневый","Зелёный","Красный","Синий","Чёрный",null,null,"Толщина","Коричневый","Зелёный","Красный","Синий","Чёрный","Гранитный",null,"Толщина","Коричневый","Зелёный","Красный","Синий","Чёрный","Гранитный","Металл",null,"Толщина","Коричневый","Зелёный","Красный","Синий","Чёрный","Гранитный","Металл",null,"Толщина","Коричневый","Зелёный","Красный","Синий","Чёрный","Гранитный","Металл"]
["100 мм","СТАНДАРТ","ЛАМИНАД","Зеленый","Зелёный","Поросёнок 2","Волна",null,null,null,null,null,null,null,"50 мм",4000,5100,4300,4300,4400,null,"50 мм",4800,6300,5200,5200,5300,null,"50 мм",5100,6600,5500,5500,5600,null,"50 мм",5800,"-",6200,6200,6200,null,null,"50 мм",6600,7800,7000,8200,7000,7800,null,"50 мм",7300,8800,7700,9200,8200,8200,9100,null,"50 мм",7800,9300,8200,9700,8700,8700,9600,null,"19 мм",8500,"-",8900,"-",9400,9400,10300]
["150 мм","ПРЕСТИЖ",null,"Красный","Красный","Поросёнок 3","Полоски",null,null,"Площадь округлённая",{"$f":"IF(K15<1, ROUND(1, K15), K15)","v":1},null,null,null,"100 мм",4200,5400,4500,4500,4600,null,"100 мм",5000,6500,5400,5400,5500,null,"100 мм",5400,6900,5800,5800,5900,null,"100 мм",6100,"-",6500,6500,6500,null,null,"100 мм",6800,8100,7200,8500,7300,8100,null,"100 мм",7600,9100,8000,9500,8500,8500,9400,null,"100 мм",8100,9600,8500,10000,9000,9000,9900,null,"22 мм",9000,"-",9400,"-",9900,9900,10800]
["200 мм","ДВОРЕЦ",null,"Синий","Синий","Поросёнок 4","Ромб",null,null,null,null,null,null,null,"150 мм",4500,5700,4800,4800,4900,null,"150 мм",5200,6800,5700,5700,5800,null,"150 мм",5700,7200,6100,6100,6200,null,"150 мм",6400,"-",6800,6800,6800,null,null,"150 мм",7100,8600,7500,9000,7800,8600,null,"150 мм",8100,9600,8500,10000,9000,9000,9900,null,"150 мм",8600,10100,9000,10500,9500,9500,10400,null,"25 мм",9500,"-",9900,"-",10400,10400,11300]
[null,null,null,"Чёрный","Чёрный","Поросёнок 5",null,null,null,null,null,null,null,null,null,null,null,null,null,null,null,null,null,null,null,null,null,null,"200 мм",6000,7500,6400,6400,6500,null,null,null,null,null,null,null,null,null,null,null,null,null,null,null,null,null,null,null,null,null,null,null,null,null,null,"200 мм",9100,10600,9500,11000,10000,10000,10900]
[null,null,null,null,"Гранитный","Поросёнок 6"]
[null,null,null,null,"Металл","Поросёнок 7"]
[null,null,null,null,null,"Поросёнок 8"]

{"sheet":"Лист3","index":2,"n_rows":0,"n_cols":0,"rows_kept":0,"cut":false,"hidden":false,"merged":[]}